bitfinex/quotes_BTCUSD_20250119
["timestamp","ask_amount","ask_price","bid_price","bid_amount"]
[1737247633326,0.12709859,104370.0,104360.0,0.85312228]
[1737247633553,0.12709859,104370.0,104360.0,0.85330814]
[1737247634101,0.12709859,104370.0,104360.0,0.82571494]
[1737247634288,0.12709859,104370.0,104360.0,0.85330814]
[1737247635774,0.12709859,104370.0,104360.0,0.82571494]
[1737247635976,0.12709859,104370.0,104360.0,0.83544926]
[1737247636173,0.12709859,104370.0,104360.0,0.86304246]
[1737247636372,0.12709859,104370.0,104360.0,0.83310521]
[1737247636597,0.12709859,104370.0,104360.0,1.12164132]
[1737247636809,0.12709859,104370.0,104360.0,1.14765764]
[1737247637163,0.12709859,104370.0,104360.0,0.88905138]
[1737247637997,0.12709859,104370.0,104360.0,0.86145818]
[1737247638178,0.12709859,104370.0,104360.0,0.88905138]
[1737247640158,0.12709859,104370.0,104360.0,0.86145818]
[1737247640582,0.12709859,104370.0,104360.0,0.88905138]
[1737247642543,0.12709859,104370.0,104360.0,0.86145818]
[1737247642956,0.12709859,104370.0,104360.0,0.88905138]
[1737247644054,0.12709859,104370.0,104360.0,0.86145818]
[1737247646890,0.00089859,104370.0,104360.0,1.09327722]
[1737247647293,0.00089859,104370.0,104360.0,1.12087042]
[1737247647838,0.00089859,104370.0,104360.0,0.73979527]
[1737247648207,0.00089859,104370.0,104360.0,0.6703414]
[1737247648407,0.00089859,104370.0,104360.0,0.6707688]
[1737247648808,0.00089859,104370.0,104360.0,0.6431756]
[1737247649134,0.00089859,104370.0,104360.0,0.6707688]
[1737247650795,0.00089859,104370.0,104360.0,1.05222206]
[1737247653178,0.00089859,104370.0,104360.0,1.05770206]
[1737247654880,0.08029859,104370.0,104360.0,0.95517499]
[1737247655649,0.08029859,104370.0,104360.0,1.21346524]
[1737247655884,0.08029859,104370.0,104360.0,1.18353539]
[1737247656061,0.08029859,104370.0,104360.0,1.17117022]
[1737247656990,0.08029859,104370.0,104360.0,0.78971696]
[1737247657783,0.12619859,104370.0,104360.0,0.78971696]
[1737247659890,0.12619859,104370.0,104360.0,0.63971696]
[1737247660696,0.19565246,104370.0,104360.0,0.63971696]
[1737247660840,0.12619859,104370.0,104360.0,0.63971696]
[1737247661541,0.12619859,104370.0,104360.0,0.85500292]
[1737247668923,0.12619859,104370.0,104360.0,0.75576211]
[1737247673525,0.12619859,104370.0,104360.0,0.54047615]
[1737247681664,0.12619859,104370.0,104360.0,0.75581434]
[1737247685127,0.12619859,104370.0,104360.0,0.49752409]
[1737247686510,0.19565246,104370.0,104360.0,0.49752409]
[1737247687522,0.19565246,104370.0,104360.0,0.66978047]
[1737247689268,0.19565246,104370.0,104360.0,0.6505643]
[1737247696147,0.28448496,104370.0,104360.0,0.49082998]
[1737247696359,0.28328729,104370.0,104360.0,0.49082998]
[1737247697344,0.28328729,104370.0,104360.0,0.70623501]
[1737247698378,0.28328729,104370.0,104360.0,0.49089682]
[1737247700748,0.29289948,104370.0,104360.0,0.49089682]
[1737247701714,0.20526465,104370.0,104360.0,0.39507482]
[1737247701875,0.30570327,104370.0,104360.0,0.49089682]
[1737247702081,0.30450546,104370.0,104360.0,0.39507482]
[1737247702300,0.30450546,104370.0,104360.0,0.49089682]
[1737247703931,0.30450546,104370.0,104360.0,0.31864044]
[1737247704397,0.30450546,104370.0,104360.0,0.22281844]
[1737247704604,0.62700546,104370.0,104360.0,0.22281844]
[1737247705208,0.62700546,104370.0,104360.0,0.31864044]
[1737247705431,0.62700546,104370.0,104360.0,0.22281844]
[1737247705629,0.62700546,104370.0,104360.0,0.09357542]
[1737247706034,0.79227133,104370.0,104360.0,0.09357542]
[1737247706328,0.49825133,104370.0,104360.0,0.09357542]
[1737247707552,0.58357794,104370.0,104360.0,0.00741341]
[1737247707950,0.49825133,104370.0,104360.0,0.00741341]
[1737247709085,0.49277133,104370.0,104360.0,0.00741341]
[1737247709316,0.23505159,104370.0,104360.0,0.00741341]
[1737247709517,0.40031746,104370.0,104360.0,0.00741341]
[1737247709722,0.46977133,104370.0,104360.0,0.00741341]
[1737247712588,0.49277133,104370.0,104360.0,0.00741341]
[1737247712782,0.7122252,104370.0,104360.0,0.00550214]
[1737247712988,0.64277133,104370.0,104360.0,0.00550214]
[1737247713586,0.8122252,104370.0,104360.0,0.00550214]
[1737247713788,1.06146601,104370.0,104360.0,0.00550214]
[1737247713998,0.96146601,104370.0,104360.0,0.00567824]
[1737247714407,0.80668361,104360.0,104350.0,0.0004275]
[1737247714652,0.95232442,104360.0,104350.0,0.0004275]
[1737247717947,0.80232442,104360.0,104350.0,0.0004275]
[1737247718305,0.95232442,104360.0,104350.0,0.0004275]
[1737247718690,1.05156523,104360.0,104350.0,0.0004275]
[1737247719789,0.95232442,104360.0,104350.0,0.0004275]
[1737247721933,0.95232442,104360.0,104350.0,0.00435857]
[1737247726375,0.85232442,104360.0,104350.0,0.00435857]
[1737247726573,0.70232442,104360.0,104350.0,0.00435857]
[1737247727990,0.91640039,104360.0,104350.0,0.00435857]
[1737247728192,0.91640039,104360.0,104350.0,0.0004275]
[1737247728418,0.91640039,104360.0,104350.0,0.0044537]
[1737247729074,0.94062548,104360.0,104350.0,0.0004275]
[1737247729898,1.04076488,104360.0,104350.0,0.0004275]
[1737247730506,0.82668891,104360.0,104350.0,0.0004275]
[1737247730792,0.82668891,104360.0,104350.0,0.0044537]
[1737247731433,0.83027512,104360.0,104350.0,0.0044537]
[1737247731598,0.68331531,104360.0,104350.0,0.0044537]
[1737247731795,0.70083531,104360.0,104350.0,0.0044537]
[1737247732121,0.70631531,104360.0,104350.0,0.0044537]
[1737247734016,0.81228922,104360.0,104350.0,0.0044537]
[1737247734341,0.91153003,104360.0,104350.0,0.0044537]
[1737247735518,0.80555612,104360.0,104350.0,0.0044537]
[1737247736654,0.95555612,104360.0,104350.0,0.0044537]
[1737247736859,0.80555612,104360.0,104350.0,0.0044537]
[1737247737913,0.91153003,104360.0,104350.0,0.0044537]
[1737247738315,0.80007612,104360.0,104350.0,0.0044537]
[1737247738532,0.80555612,104360.0,104350.0,0.0044537]
[1737247748107,0.89088273,104360.0,104350.0,0.0044537]
[1737247749308,1.01963209,104360.0,104350.0,0.0044537]
[1737247752284,1.19120297,104360.0,104350.0,0.0044537]
[1737247752931,1.20102459,104360.0,104350.0,0.0044537]
[1737247753130,1.20650459,104360.0,104350.0,0.0044537]
[1737247753541,1.2395833,104360.0,104350.0,0.0044537]
[1737247754732,1.3895833,104360.0,104350.0,0.0044537]
[1737247754949,1.2395833,104360.0,104350.0,0.0044537]
[1737247755380,1.40835042,104360.0,104350.0,0.0044537]
[1737247755596,0.81915068,104360.0,104350.0,0.0044537]
[1737247755800,0.9636833,104360.0,104350.0,0.0044537]
[1737247756564,1.1136833,104360.0,104350.0,0.0044537]
[1737247756790,0.51349402,104360.0,104350.0,0.0044537]
[1737247759145,0.72756999,104360.0,104350.0,0.0044537]
[1737247760016,0.59882063,104360.0,104350.0,0.0044537]
[1737247770243,0.51349402,104360.0,104350.0,0.0044537]
[1737247774668,0.51349402,104360.0,104350.0,0.00520352]
[1737247775154,0.59882063,104360.0,104350.0,0.00520352]
[1737247778913,0.72756999,104360.0,104350.0,0.00520352]
[1737247779391,0.48504368,104360.0,104350.0,0.00520352]
[1737247779599,0.55456999,104360.0,104350.0,0.00520352]
[1737247779797,0.42582063,104360.0,104350.0,0.00520352]
[1737247781149,0.34049402,104360.0,104350.0,0.00520352]
[1737247794314,0.42812885,104360.0,104350.0,0.00520352]
[1737247794561,0.25730054,104360.0,104350.0,0.17703452]
[1737247794798,0.35312254,104360.0,104350.0,0.17703452]
[1737247795249,0.25730054,104360.0,104350.0,0.17703452]
[1737247795716,0.35312254,104360.0,104350.0,0.17703452]
[1737247796629,0.25730054,104360.0,104350.0,0.17703452]
[1737247796868,0.35312254,104360.0,104350.0,0.17703452]
[1737247797363,0.42264885,104360.0,104350.0,0.17703452]
[1737247798514,0.42264885,104360.0,104350.0,0.08120352]
[1737247799232,0.42264885,104360.0,104350.0,0.00520352]
[1737247801178,0.33501402,104360.0,104350.0,0.00520352]
[1737247801383,0.48554033,104360.0,104350.0,0.00520352]
[1737247802009,0.60854033,104360.0,104350.0,0.00520352]
[1737247802247,0.65354033,104360.0,104350.0,0.00520352]
[1737247802870,1.25372961,104360.0,104350.0,0.00520352]
[1737247805817,1.1842033,104360.0,104350.0,0.00520352]
[1737247806194,1.25372961,104360.0,104350.0,0.00520352]
[1737247806392,0.96966087,104360.0,104350.0,0.00520352]
[1737247807874,1.07438168,104360.0,104350.0,0.00520352]
[1737247808074,0.97514087,104360.0,104350.0,0.00520352]
[1737247809343,0.87514087,104360.0,104350.0,0.00520352]
[1737247810159,0.70356999,104360.0,104350.0,0.00520352]
[1737247824056,0.55456999,104360.0,104350.0,0.00520352]
[1737247824905,0.42582063,104360.0,104350.0,0.00520352]
[1737247825811,0.42034063,104360.0,104350.0,0.00520352]
[1737247826060,0.27858084,104360.0,104350.0,0.10103452]
[1737247826239,0.34810715,104360.0,104350.0,0.18403452]
[1737247826422,0.26278054,104360.0,104350.0,0.18403452]
[1737247826834,0.17514571,104360.0,104350.0,0.18403452]
[1737247827031,0.16966571,104360.0,104350.0,0.18403452]
[1737247827230,0.25730054,104360.0,104350.0,0.18403452]
[1737247829602,0.08853342,104360.0,104350.0,0.18403452]
[1737247829974,0.08853342,104360.0,104350.0,0.27019653]
[1737247830461,0.15805973,104360.0,104350.0,0.27738119]
[1737247830667,0.15805973,104360.0,104350.0,0.40662421]
[1737247832485,0.15805973,104360.0,104350.0,0.27738119]
[1737247834644,0.08853342,104360.0,104350.0,0.27738119]
[1737247834815,0.15805973,104360.0,104350.0,0.27738119]
[1737247836035,0.15805973,104360.0,104350.0,0.27260517]
[1737247836236,0.15805973,104360.0,104350.0,0.2783413]
[1737247837621,0.15925762,104360.0,104350.0,0.2783413]
[1737247838099,0.00089859,104360.0,104350.0,0.3253413]
[1737247838337,0.00089859,104360.0,104350.0,0.23917929]
[1737247839145,0.00089859,104360.0,104350.0,0.84217889]
[1737247839690,0.00089859,104360.0,104350.0,0.75601688]
[1737247841263,0.00089859,104360.0,104350.0,0.84210898]
[1737247842633,0.00089859,104360.0,104350.0,0.91163529]
[1737247843278,0.00089859,104360.0,104350.0,0.84210898]
[1737247843489,0.00089859,104360.0,104350.0,0.75601688]
[1737247843666,0.00089859,104360.0,104350.0,0.82554319]
[1737247843890,0.00089859,104360.0,104350.0,0.8349631]
[1737247844834,0.00089859,104360.0,104350.0,0.9849631]
[1737247846665,0.00089859,104360.0,104350.0,1.08420391]
[1737247850252,0.00089859,104360.0,104350.0,1.17016101]
[1737247850487,0.00089859,104360.0,104350.0,1.25205249]
[1737247850703,0.00089859,104360.0,104350.0,1.46823249]
[1737247850886,0.00089859,104370.0,104360.0,0.66863979]
[1737247851122,0.00089859,104370.0,104360.0,0.7678806]
[1737247851332,0.00089859,104370.0,104360.0,0.63331181]
[1737247851534,0.00089859,104370.0,104360.0,0.77954909]
[1737247851742,0.00089859,104370.0,104360.0,0.71002278]
[1737247851921,0.00089859,104370.0,104360.0,0.95405554]
[1737247852156,0.00089859,104370.0,104360.0,0.96642071]
[1737247852566,0.00089859,104370.0,104360.0,1.03594702]
[1737247855240,0.00089859,104370.0,104360.0,1.05493272]
[1737247857596,0.00089859,104370.0,104360.0,1.26933133]
[1737247858585,0.00089859,104370.0,104360.0,1.01104108]
[1737247859216,0.00089859,104370.0,104360.0,1.01656108]
[1737247859422,0.00089859,104370.0,104360.0,1.31670128]
[1737247859633,0.00089859,104370.0,104360.0,1.24717497]
[1737247860317,0.00089859,104370.0,104360.0,1.18254977]
[1737247860811,0.00089859,104370.0,104360.0,1.11302346]
[1737247861258,0.00089859,104370.0,104360.0,0.89349715]
[1737247861460,0.00089859,104370.0,104360.0,0.75973198]
[1737247861846,0.00089859,104370.0,104360.0,0.88834386]
[1737247862022,0.00089859,104370.0,104360.0,0.95787017]
[1737247862667,0.00089859,104370.0,104360.0,0.58819001]
[1737247867943,0.00089859,104370.0,104360.0,0.58861791]
[1737247868491,0.00089859,104370.0,104360.0,0.46000603]
[1737247869318,0.00089859,104370.0,104360.0,0.58861791]
[1737247870181,0.00089859,104370.0,104360.0,0.4893771]
[1737247870979,0.1532249,104370.0,104360.0,0.4703914]
[1737247871565,0.1532249,104370.0,104360.0,0.25602607]
[1737247871793,0.08369859,104370.0,104360.0,0.25602607]
[1737247872113,0.08489629,104370.0,104360.0,0.25602607]
[1737247872824,0.1544226,104370.0,104360.0,0.25602607]
[1737247873319,0.1544226,104370.0,104360.0,0.10602607]
[1737247874332,0.24205743,104370.0,104360.0,0.10602607]
[1737247874532,0.24085973,104370.0,104360.0,0.10602607]
[1737247875652,0.29025973,104370.0,104360.0,0.10602607]
[1737247876565,0.22073342,104370.0,104360.0,0.10602607]
[1737247878011,0.29025973,104370.0,104360.0,0.10602607]
[1737247878163,0.29025973,104370.0,104360.0,0.19177952]
[1737247878768,0.22073342,104370.0,104360.0,0.19177952]
[1737247879319,0.29025973,104370.0,104360.0,0.19177952]
[1737247880926,0.39767771,104370.0,104360.0,0.09595752]
[1737247881089,0.46720402,104370.0,104360.0,0.09595752]
[1737247881489,0.46720402,104370.0,104360.0,0.01020407]
[1737247881742,0.46720402,104370.0,104360.0,0.00301941]
[1737247884426,0.39767771,104370.0,104360.0,0.00301941]
[1737247884773,0.30186571,104370.0,104360.0,0.09884141]
[1737247885190,0.38950054,104370.0,104360.0,0.09884141]
[1737247885384,0.30186571,104370.0,104360.0,0.09884141]
[1737247885586,0.38950054,104370.0,104360.0,0.09884141]
[1737247885810,0.22073342,104370.0,104360.0,0.09884141]
[1737247886177,0.08853342,104370.0,104360.0,0.09884141]
[1737247886601,0.00089859,104370.0,104360.0,0.18459486]
[1737247887003,0.00089859,104370.0,104360.0,0.35336198]
[1737247887265,0.00089859,104370.0,104360.0,0.43016198]
[1737247887467,0.00089859,104370.0,104360.0,0.87515485]
[1737247887908,0.00089859,104370.0,104360.0,0.89204765]
[1737247888825,0.00089859,104370.0,104360.0,0.50617363]
[1737247889276,0.00089859,104370.0,104360.0,0.65617363]
[1737247889479,0.00089859,104370.0,104360.0,0.91446388]
[1737247890323,0.00089859,104370.0,104360.0,0.9336237]
[1737247892522,0.00089859,104370.0,104360.0,0.93255292]
[1737247892735,0.00089859,104370.0,104360.0,0.9335477]
[1737247893088,0.00089859,104370.0,104360.0,0.67525745]
[1737247893704,0.00089859,104370.0,104360.0,0.9335477]
[1737247896304,0.00089859,104370.0,104360.0,1.0393758]
[1737247896505,0.00089859,104370.0,104360.0,1.05174097]
[1737247897747,0.00089859,104370.0,104360.0,0.83734236]
[1737247901062,0.00089859,104370.0,104360.0,0.73151426]
[1737247902421,0.00089859,104370.0,104360.0,0.64234909]
[1737247903206,0.00089859,104370.0,104360.0,0.65471426]
[1737247906288,0.00089859,104370.0,104360.0,0.83734236]
[1737247908101,0.00089859,104370.0,104360.0,0.96050537]
[1737247911004,0.00089859,104370.0,104360.0,0.96358207]
[1737247911350,0.00089859,104370.0,104360.0,0.85775397]
[1737247912722,0.00089859,104370.0,104360.0,0.73438289]
[1737247913242,0.00089859,104370.0,104360.0,1.11583615]
[1737247913940,0.00089859,104370.0,104360.0,0.73438289]
[1737247915026,0.00089859,104370.0,104360.0,0.65758289]
[1737247915817,0.00089859,104370.0,104360.0,0.64521772]
[1737247919314,0.00089859,104370.0,104360.0,0.6751206]
[1737247920669,0.07909859,104370.0,104360.0,0.6751206]
[1737247921370,0.07909859,104370.0,104360.0,0.57587979]
[1737247921707,0.07909859,104370.0,104360.0,0.54597691]
[1737247922433,0.07909859,104370.0,104360.0,0.76103888]
[1737247925740,0.12749859,104370.0,104360.0,0.74187906]
[1737247925939,0.12749859,104370.0,104360.0,0.52681709]
[1737247926864,0.12749859,104370.0,104360.0,0.44082944]
[1737247927750,0.12749859,104370.0,104360.0,0.65597148]
[1737247929394,0.12749859,104370.0,104360.0,0.48387695]
[1737247930120,0.12749859,104370.0,104360.0,0.74195913]
[1737247930848,0.12749859,104370.0,104360.0,0.52681709]
[1737247935582,0.3221676,104370.0,104360.0,0.58255134]
[1737247935793,0.32096992,104370.0,104360.0,0.58255134]
[1737247936069,0.21513342,104370.0,104360.0,0.58255134]
[1737247936485,0.21513342,104370.0,104360.0,0.49681015]
[1737247938942,0.21513342,104370.0,104360.0,0.62602577]
[1737247942439,0.21513342,104370.0,104360.0,0.71214601]
[1737247943976,0.32096992,104370.0,104360.0,0.71214601]
[1737247944182,0.3325759,104370.0,104360.0,0.71214601]
[1737247944881,0.3325759,104370.0,104360.0,0.19514701]
[1737247945463,0.29622354,104370.0,104360.0,0.19514701]
[1737247945871,0.29622354,104370.0,104360.0,0.10902677]
[1737247946224,0.29622354,104370.0,104360.0,0.10184211]
[1737247946544,0.29622354,104370.0,104360.0,0.18796235]
[1737247947424,0.29622354,104370.0,104360.0,0.10184211]
[1737247956894,0.31437423,104370.0,104360.0,0.10184211]
[1737247957129,0.08853342,104370.0,104360.0,0.10184211]
[1737247957526,0.16553342,104370.0,104360.0,0.10184211]
[1737247957723,0.16553342,104370.0,104360.0,0.31717797]
[1737247959133,0.48803342,104370.0,104360.0,0.31717797]
[1737247962466,0.41103342,104370.0,104360.0,0.31717797]
[1737247962823,0.41103342,104370.0,104360.0,0.48951896]
[1737247963024,0.32339859,104370.0,104360.0,0.48951896]
[1737247963250,0.41103342,104370.0,104360.0,0.48951896]
[1737247963452,0.32339859,104370.0,104360.0,0.48951896]
[1737247964172,0.41103342,104370.0,104360.0,0.48951896]
[1737247964379,0.32339859,104370.0,104360.0,0.48951896]
[1737247964585,0.41103342,104370.0,104360.0,0.48951896]
[1737247964929,0.32339859,104370.0,104360.0,0.48951896]
[1737247966529,0.32339859,104370.0,104360.0,0.70496135]
[1737247966898,0.41103342,104370.0,104360.0,0.70496135]
[1737247967105,0.32339859,104370.0,104360.0,0.70496135]
[1737247967324,0.32339859,104370.0,104360.0,0.92444549]
[1737247967503,0.32339859,104370.0,104360.0,1.00544549]
[1737247967902,0.32339859,104370.0,104360.0,0.87585082]
[1737247968113,0.00089859,104370.0,104360.0,1.04329163]
[1737247968429,0.00089859,104370.0,104360.0,0.82784924]
[1737247968774,0.00089859,104370.0,104360.0,0.7583651]
[1737247971780,0.00089859,104370.0,104360.0,0.78677574]
[1737247972683,0.00089859,104370.0,104360.0,0.85625988]
[1737247973400,0.00089859,104370.0,104360.0,0.78677574]
[1737247981193,0.00089859,104370.0,104360.0,0.85625988]
[1737247981642,0.00089859,104370.0,104360.0,0.78677574]
[1737247982213,0.00089859,104370.0,104360.0,0.85625988]
[1737247982924,0.00089859,104370.0,104360.0,0.78677574]
[1737247983122,0.00089859,104370.0,104360.0,0.74157574]
[1737247983325,0.00089859,104370.0,104360.0,0.66057574]
[1737247983933,0.00089859,104370.0,104360.0,0.53833493]
[1737247984140,0.07679859,104370.0,104360.0,0.53833493]
[1737247991487,0.07679859,104370.0,104360.0,0.75351293]
[1737247993340,0.07679859,104370.0,104360.0,0.53833493]
[1737247995721,0.07679859,104370.0,104360.0,0.75355385]
[1737247996786,0.07679859,104370.0,104360.0,0.53833493]
[1737247997765,0.07679859,104370.0,104360.0,0.51936335]
[1737247998096,0.28211522,104370.0,104360.0,0.50992429]
[1737247998300,0.38833554,104370.0,104360.0,0.57519327]
[1737247998501,0.29252354,104370.0,104360.0,0.57519327]
[1737247999395,0.29252354,104370.0,104360.0,0.70466307]
[1737248001898,0.29252354,104370.0,104360.0,0.61854041]
[1737248004559,0.29252354,104370.0,104360.0,0.70469511]
[1737248005370,0.38833554,104370.0,104360.0,0.60887311]
[1737248005540,0.29252354,104370.0,104360.0,0.60887311]
[1737248006079,0.29252354,104370.0,104360.0,0.39360413]
[1737248006311,0.29252354,104370.0,104360.0,0.48942613]
[1737248006854,0.29252354,104370.0,104360.0,0.3171808]
[1737248008088,0.29252354,104370.0,104360.0,0.2213588]
[1737248009496,0.29252354,104370.0,104360.0,0.3171808]
[1737248009827,0.29252354,104370.0,104360.0,0.2213588]
[1737248010409,0.29252354,104370.0,104360.0,0.3171808]
[1737248012056,0.29252354,104370.0,104360.0,0.18799681]
[1737248014043,0.29252354,104370.0,104360.0,0.09217481]
[1737248015228,0.38833554,104370.0,104360.0,0.09217481]
[1737248015430,0.45781968,104370.0,104360.0,0.09217481]
[1737248016220,0.46329968,104370.0,104360.0,0.09217481]
[1737248016975,0.39381554,104370.0,104360.0,0.00602011]
[1737248018522,0.46329968,104370.0,104360.0,0.00602011]
[1737248018670,0.39381554,104370.0,104360.0,0.00602011]
[1737248020381,0.47284465,104370.0,104360.0,0.00602011]
[1737248022812,0.40336051,104370.0,104360.0,0.00602011]
[1737248023434,0.47284465,104370.0,104360.0,0.00602011]
[1737248024110,0.40336051,104370.0,104360.0,0.00602011]
[1737248024317,0.47284465,104370.0,104360.0,0.00602011]
[1737248025753,0.40336051,104370.0,104360.0,0.00602011]
[1737248026936,0.47284465,104370.0,104360.0,0.00602011]
[1737248048191,0.67208546,104370.0,104360.0,0.00602011]
[1737248048771,0.57284465,104370.0,104360.0,0.00602011]
[1737248051725,0.56736465,104370.0,104360.0,0.00602011]
[1737248051959,0.57284465,104370.0,104360.0,0.00602011]
[1737248054368,0.65817126,104370.0,104360.0,0.00602011]
[1737248054887,0.57284465,104370.0,104360.0,0.00602011]
[1737248055723,0.76044955,104370.0,104360.0,0.00752406]
[1737248055973,0.72993369,104370.0,104360.0,0.00752406]
[1737248056122,0.72993369,104370.0,104360.0,0.01106056]
[1737248056667,0.75293369,104370.0,104360.0,0.01106056]
[1737248057297,1.26779636,104370.0,104360.0,0.01106056]
[1737248057994,1.06837612,104370.0,104360.0,0.01106056]
[1737248058605,1.32582704,104370.0,104360.0,0.01106056]
[1737248061635,1.11128461,104370.0,104360.0,0.01106056]
[1737248063032,0.85383369,104370.0,104360.0,0.01106056]
[1737248064221,0.85383369,104370.0,104360.0,0.0004279]
[1737248064518,1.11171297,104370.0,104360.0,0.0004279]
[1737248064883,1.34601163,104370.0,104360.0,0.00798645]
[1737248065715,1.34601163,104370.0,104360.0,4.5e-07]
[1737248065896,1.34601163,104370.0,104360.0,7.9e-07]
[1737248066073,1.34601163,104370.0,104360.0,0.00780662]
[1737248066272,1.34601163,104370.0,104360.0,6.2e-07]
[1737248066542,1.13118361,104370.0,104360.0,0.00650562]
[1737248066786,1.13118361,104370.0,104360.0,6.2e-07]
[1737248067037,1.13118361,104370.0,104360.0,5e-07]
[1737248067256,0.496422,104360.0,104350.0,0.00038833]
[1737248067459,0.90335604,104360.0,104350.0,0.00038833]
[1737248067887,1.77125604,104360.0,104350.0,0.0016669]
[1737248068083,2.28624705,104360.0,104350.0,0.0016669]
[1737248068493,2.28624705,104360.0,104350.0,9e-07]
[1737248068639,2.28624705,104360.0,104350.0,1.5e-07]
[1737248068843,2.28624705,104360.0,104340.0,0.0004275]
[1737248068844,0.395531,104350.0,104340.0,0.0004275]
[1737248069062,0.90336504,104350.0,104340.0,0.0004275]
[1737248069283,0.90336504,104350.0,104340.0,0.00138352]
[1737248069462,0.90336504,104350.0,104340.0,0.00233954]
[1737248069666,1.11777014,104350.0,104340.0,0.00233954]
[1737248070923,0.98912708,104350.0,104340.0,0.00233954]
[1737248071296,1.11777014,104350.0,104340.0,0.00233954]
[1737248071943,0.98912708,104350.0,104340.0,0.00233954]
[1737248073348,0.90336504,104350.0,104340.0,0.00636119]
[1737248073553,0.90336504,104350.0,104340.0,0.00233954]
[1737248073785,0.90336504,104350.0,104340.0,0.00636119]
[1737248073988,0.90336504,104350.0,104340.0,0.00233954]
[1737248074141,0.90336504,104350.0,104340.0,0.00636119]
[1737248074886,0.90426363,104350.0,104340.0,0.00636119]
[1737248075380,0.92326407,104350.0,104340.0,0.00636119]
[1737248076355,0.9326026,104350.0,104340.0,0.00636119]
[1737248078650,0.73246179,104350.0,104340.0,0.00636119]
[1737248078853,0.73794179,104350.0,104340.0,0.00636119]
[1737248079276,0.73742991,104350.0,104340.0,0.00636119]
[1737248081697,0.83842991,104350.0,104340.0,0.00636119]
[1737248082669,0.83842991,104350.0,104340.0,1.9e-07]
[1737248082873,0.93767072,104350.0,104340.0,4e-07]
[1737248083243,0.177849,104330.0,104320.0,0.0004276]
[1737248083486,0.48674073,104330.0,104320.0,0.00057792]
[1737248083664,0.48554223,104330.0,104320.0,0.00057792]
[1737248084172,0.41605809,104330.0,104320.0,0.00057792]
[1737248085199,0.5152989,104330.0,104320.0,0.00057792]
[1737248088848,0.53450096,104330.0,104320.0,0.00057792]
[1737248089509,0.6039851,104330.0,104320.0,0.00057792]
[1737248089988,0.61370866,104330.0,104320.0,0.00057792]
[1737248091009,0.76370866,104330.0,104320.0,0.00057792]
[1737248092411,0.78670866,104330.0,104320.0,0.00057792]
[1737248093553,0.83270866,104330.0,104320.0,0.00057792]
[1737248093762,0.93370866,104330.0,104320.0,9.2e-07]
[1737248094443,0.54971042,104320.0,104310.0,5.2e-07]
[1737248094648,0.344268,104310.0,104300.0,0.0004276]
[1737248094850,0.65196123,104310.0,104300.0,0.0004276]
[1737248095056,0.67712439,104310.0,104300.0,0.0004276]
[1737248096558,0.72462439,104310.0,104300.0,0.0004276]
[1737248097327,0.82562439,104310.0,104300.0,0.0004276]
[1737248097539,0.94636893,104310.0,104300.0,0.0004276]
[1737248100240,0.9248652,104310.0,104300.0,0.0004276]
[1737248100464,0.94371727,104310.0,104300.0,0.0004276]
[1737248100804,0.965221,104310.0,104300.0,0.0004276]
[1737248102472,0.97464734,104310.0,104300.0,0.0004276]
[1737248102821,0.95314361,104310.0,104300.0,0.0004276]
[1737248103411,0.64545038,104310.0,104300.0,0.0004276]
[1737248103609,0.82873964,104310.0,104300.0,0.0004276]
[1737248104651,0.83421964,104310.0,104300.0,0.0004276]
[1737248105674,0.51928722,104310.0,104300.0,0.0004276]
[1737248105901,0.5408355,104310.0,104300.0,0.0004276]
[1737248106016,0.57144872,104310.0,104300.0,0.0004276]
[1737248106214,0.5408355,104310.0,104300.0,0.0004276]
[1737248106879,0.5353555,104310.0,104300.0,0.0004276]
[1737248107232,0.5123555,104310.0,104300.0,0.0004276]
[1737248107444,0.59098518,104310.0,104300.0,0.0004276]
[1737248109624,0.59188419,104310.0,104300.0,0.0004276]
[1737248109831,0.691125,104310.0,104300.0,0.0004276]
[1737248112806,0.839525,104310.0,104300.0,0.0004276]
[1737248113750,0.839525,104310.0,104300.0,6e-07]
[1737248114162,0.88210396,104290.0,104280.0,0.0004277]
[1737248114362,0.98134477,104290.0,104280.0,0.0004277]
[1737248114565,1.08606558,104290.0,104280.0,0.0004277]
[1737248114895,0.98682477,104290.0,104280.0,0.0004277]
[1737248115528,0.98682477,104290.0,104280.0,0.00092897]
[1737248118013,0.66432477,104290.0,104280.0,0.00092897]
[1737248119153,0.67368211,104290.0,104280.0,0.00092897]
[1737248120305,0.56660211,104290.0,104280.0,0.00092897]
[1737248120662,0.57208211,104290.0,104280.0,0.00092897]
[1737248121886,0.59156336,104290.0,104280.0,0.00092897]
[1737248124069,0.58608336,104290.0,104280.0,0.00092897]
[1737248124272,0.59156336,104290.0,104280.0,0.00092897]
[1737248125071,0.58608336,104290.0,104280.0,0.00092897]
[1737248125287,0.59156336,104290.0,104280.0,0.00092897]
[1737248125486,0.58608336,104290.0,104280.0,0.00092897]
[1737248125662,0.59156336,104290.0,104280.0,0.00092897]
[1737248126412,0.69080417,104290.0,104280.0,0.00092897]
[1737248126590,0.68532417,104290.0,104280.0,0.00092897]
[1737248126793,0.69080417,104290.0,104280.0,0.00092897]
[1737248128290,0.84020417,104290.0,104280.0,0.00092897]
[1737248129494,0.96882798,104290.0,104280.0,0.00092897]
[1737248130051,0.84020417,104290.0,104280.0,0.00092897]
[1737248131201,0.96882798,104290.0,104280.0,0.00092897]
[1737248131749,1.14034963,104290.0,104280.0,0.00092897]
[1737248135551,1.35492922,104290.0,104280.0,0.00092897]
[1737248137854,1.22630541,104290.0,104280.0,0.00092897]
[1737248140030,1.05478376,104290.0,104280.0,0.00092897]
[1737248140974,1.31266304,104290.0,104280.0,0.00092897]
[1737248142586,1.31266304,104290.0,104280.0,9.7e-07]
[1737248142980,1.41366304,104290.0,104280.0,9.7e-07]
[1737248144184,1.41366304,104290.0,104280.0,0.00042887]
[1737248145498,1.41366304,104290.0,104280.0,8.7e-07]
[1737248145499,1.41052919,104290.0,104280.0,8.7e-07]
[1737248146592,1.1959496,104290.0,104280.0,8.7e-07]
[1737248148280,1.41089376,104290.0,104280.0,8.7e-07]
[1737248149124,1.15301448,104290.0,104280.0,8.7e-07]
[1737248149791,1.41089376,104290.0,104280.0,8.7e-07]
[1737248151152,1.1959496,104290.0,104280.0,8.7e-07]
[1737248154537,1.0949496,104290.0,104280.0,8.7e-07]
[1737248154874,0.40489811,104260.0,104250.0,0.1244278]
[1737248155070,0.50961892,104260.0,104250.0,0.1244278]
[1737248155261,0.43995755,104260.0,104250.0,0.1244278]
[1737248156528,0.43995755,104260.0,104250.0,0.14240564]
[1737248156972,0.50961892,104260.0,104250.0,0.14240564]
[1737248159091,0.50961892,104260.0,104250.0,0.13740564]
[1737248163075,0.51916945,104260.0,104250.0,0.13740564]
[1737248165936,0.76841026,104260.0,104250.0,0.13740564]
[1737248166142,0.66841026,104260.0,104250.0,0.01797784]
[1737248166795,0.74571026,104260.0,104250.0,0.01797784]
[1737248166959,0.495923,104250.0,104240.0,0.0004274]
[1737248167169,0.90338873,104250.0,104240.0,0.0004274]
[1737248167366,0.78134792,104250.0,104240.0,0.0004274]
[1737248167566,0.70434792,104250.0,104240.0,0.0004274]
[1737248168175,0.70434792,104250.0,104240.0,0.00047748]
[1737248168343,1.22031105,104250.0,104240.0,0.00047748]